bitfinex-derivatives/quotes_ETHF0:USTF0_20251210
["timestamp","ask_amount","ask_price","bid_price","bid_amount"]
[1765369634155,1.17824892,3316.0,3315.3,4.40880776]
[1765369635455,0.6425,3315.0,3314.9,3.2078]
[1765369635762,0.6425,3315.0,3314.5,0.15083]
[1765369639763,0.6425,3314.5,3314.4,3.2078]
[1765369640656,2.8746,3314.5,3314.4,5.4676]
[1765369642666,2.8746,3314.5,3314.4,3.2078]
[1765369643264,2.2321,3314.4,3314.3,0.0072494]
[1765369643565,2.2321,3314.4,3314.3,1.1657494]
[1765369643966,2.2321,3314.4,3314.3,0.0072494]
[1765369644467,2.2321,3314.4,3314.3,0.8814494]
[1765369644665,2.2321,3314.4,3314.3,0.0072494]
[1765369644859,2.2321,3314.4,3312.7,3.2078]
[1765369644860,0.4983,3314.0,3312.7,3.2078]
[1765369645165,3.2078,3313.7,3312.7,3.2078]
[1765369645765,0.50282284,3313.5,3312.9,0.00452284]
[1765369645965,0.8482,3313.0,3312.9,1.76342284]
[1765369647066,2.18664978,3313.5,3313.4,0.8742]
[1765369647869,2.18664978,3313.5,3313.4,1.7589]
[1765369648564,0.00784978,3313.5,3313.4,1.7589]
[1765369650365,0.02965307,3313.5,3313.4,1.7589]
[1765369651473,2.20845307,3313.5,3313.4,1.90979]
[1765369651665,1.37615307,3313.5,3313.4,1.90979]
[1765369651866,2.20845307,3313.5,3313.4,1.7589]
[1765369653365,0.02965307,3313.5,3313.4,1.7589]
[1765369653565,0.87785307,3313.5,3313.4,1.7589]
[1765369653760,0.02965307,3313.5,3313.4,1.7589]
[1765369654774,1.37615307,3313.5,3313.4,1.7589]
[1765369655175,0.02965307,3313.5,3313.4,1.7589]
[1765369657468,2.20845307,3313.5,3313.4,1.7589]
[1765369657762,1.37615307,3313.5,3313.4,1.7589]
[1765369658370,1.6805,3313.3,3313.2,5.11759]
[1765369659576,1.70230329,3313.3,3313.2,5.11759]
[1765369659767,1.70230329,3313.3,3313.2,4.23289]
[1765369660376,1.70230329,3313.3,3313.2,5.11759]
[1765369660875,0.87000329,3313.3,3313.2,5.11759]
[1765369661066,0.02180329,3313.3,3313.2,5.11759]
[1765369665166,0.00784978,3313.5,3313.4,1.90979]
[1765369668079,0.00784978,3313.5,3313.4,0.8742]
[1765369668378,0.7322,3312.1,3312.0,1.4005]
[1765369668574,0.3661,3312.1,3312.0,2.2852]
[1765369669080,4.056,3312.2,3312.1,1.7589]
[1765369669280,4.8883,3312.2,3312.1,1.76269197]
[1765369670776,3.2078,3312.2,3312.1,1.76269197]
[1765369670972,4.056,3312.6,3312.5,2.2852]
[1765369671174,3.2078,3312.6,3312.5,2.2852]
[1765369671373,4.056,3312.6,3312.5,2.2852]
[1765369672174,4.8883,3312.6,3312.5,2.2852]
[1765369672375,1.6805,3312.2,3312.1,1.76269197]
[1765369672684,4.8883,3312.2,3312.1,0.00379197]
[1765369672879,4.8883,3312.2,3312.1,1.76269197]
[1765369673079,4.056,3312.2,3312.1,1.76269197]
[1765369673286,4.8883,3312.2,3312.1,1.76269197]
[1765369673582,4.8883,3312.2,3312.1,0.87799197]
[1765369673790,4.8883,3312.2,3312.1,0.00379197]
[1765369673977,3.2078,3312.2,3312.1,3.04289197]
[1765369675278,6.2543,3312.2,3312.1,3.04289197]
[1765369675478,6.2543,3312.2,3312.1,1.51079197]
[1765369675678,6.2543,3312.2,3312.1,0.00379197]
[1765369678492,4.7894,3312.2,3312.1,3.04289197]
[1765369678789,3.2078,3312.2,3312.1,3.04289197]
[1765369686198,3.2078,3312.6,3312.5,3.5807]
[1765369687604,4.5101,3312.6,3312.5,3.5807]
[1765369687803,3.2078,3312.6,3312.5,3.5807]
[1765369693307,0.45894978,3313.5,3312.9,2.5049]
[1765369693308,4.4822,3313.0,3312.9,2.5049]
[1765369693804,3.2078,3313.0,3312.9,2.5049]
[1765369694102,4.4822,3313.0,3312.9,2.5049]
[1765369696800,5.7576,3313.0,3312.9,2.5049]
[1765369702815,5.7576,3313.0,3312.9,3.7076285]
[1765369704213,2.173,3312.6,3312.5,0.8219]
[1765369704408,3.2078,3313.0,3312.4,3.4316285]
[1765369704609,5.3808,3313.0,3312.9,2.2289]
[1765369704818,4.3118,3313.0,3312.9,2.2289]
[1765369705204,5.3808,3313.0,3312.9,2.2289]
[1765369705517,2.173,3312.8,3312.7,3.4316285]
[1765369706816,1.104,3312.8,3312.7,3.4316285]
[1765369707914,2.173,3312.8,3312.7,3.4316285]
[1765369708110,1.104,3312.8,3312.7,3.4316285]
[1765369711319,2.173,3312.8,3312.7,3.4316285]
[1765369712222,5.3808,3313.0,3312.9,2.2289]
[1765369713323,6.15866736,3313.0,3312.9,2.2289]
[1765369714812,5.08966736,3313.0,3312.9,2.2289]
[1765369716317,6.15866736,3313.0,3312.9,2.2289]
[1765369717222,2.95086736,3313.0,3312.9,2.2289]
[1765369718214,2.173,3312.8,3312.7,2.37982]
[1765369719117,4.2855,3313.2,3313.1,1.1014]
[1765369719320,3.2078,3313.6,3313.5,2.8682]
[1765369719518,3.2078,3313.6,3313.5,4.0709285]
[1765369719921,4.3118,3313.6,3313.5,4.0709285]
[1765369720424,3.2078,3313.6,3313.5,4.0709285]
[1765369720629,4.31522235,3313.6,3313.5,4.0709285]
[1765369720828,3.21122235,3313.6,3313.5,4.0709285]
[1765369725126,3.21122235,3313.6,3313.5,4.2218085]
[1765369725333,4.31522235,3313.6,3313.5,4.2218085]
[1765369725526,0.00342235,3313.6,3313.5,4.2218085]
[1765369728734,1.10742235,3313.6,3313.5,4.2218085]
[1765369731837,0.00342235,3313.6,3313.5,4.2218085]
[1765369734052,1.04652235,3313.6,3313.5,4.2218085]
[1765369734255,0.00342235,3313.6,3313.5,4.2218085]
[1765369736153,3.2078,3314.7,3314.2,0.9544]
[1765369736342,5.6275,3315.0,3314.5,3.2078]
[1765369736547,1.8491,3314.6,3314.5,3.2078]
[1765369736747,4.7427,3315.0,3314.9,0.8742]
[1765369736948,5.6275,3315.0,3314.9,3.0313285]
[1765369737148,5.63028437,3315.0,3314.9,2.0797847]
[1765369737653,5.63028437,3315.0,3314.9,1.2055847]
[1765369739354,2.42248437,3315.0,3314.9,3.0341847]
[1765369739854,2.42248437,3315.0,3314.9,2.0797847]
[1765369740352,2.42248437,3315.0,3314.9,1.2055847]
[1765369740753,2.42248437,3315.0,3314.9,0.0028562]
[1765369749256,2.42248437,3315.0,3314.9,0.8770562]
[1765369749257,3.20110576,3315.0,3314.9,0.8770562]
[1765369749554,0.00278437,3315.0,3314.9,1.9822762]
[1765369749754,1.85188437,3315.0,3314.9,3.18367903]
[1765369750262,2.42248437,3315.0,3314.9,1.0278762]
[1765369750662,2.42248437,3315.0,3314.9,1.9822762]
[1765369751656,2.42248437,3315.0,3314.9,1.0278762]
[1765369751863,2.42248437,3315.0,3314.9,0.1536762]
[1765369752759,2.42248437,3315.0,3314.9,0.0028562]
[1765369753062,6.40877583,3315.0,3314.9,0.0028562]
[1765369753262,2.9572,3314.5,3314.4,0.15084]
[1765369754261,2.9572,3314.5,3314.4,0.15313895]
[1765369755157,2.9572,3314.5,3314.4,0.00229895]
[1765369755361,3.73603512,3314.5,3314.4,0.00229895]
[1765369755865,2.2665,3313.9,3313.8,3.35867]
[1765369756967,2.2665,3313.9,3313.8,3.36238059]
[1765369757656,2.2665,3313.9,3313.8,4.56358059]
[1765369758761,2.2665,3313.9,3313.8,3.36238059]
[1765369759064,2.2665,3313.9,3313.8,4.56358059]
[1765369760465,2.2665,3313.9,3313.8,3.36238059]
[1765369761261,2.2665,3313.9,3313.8,5.67298059]
[1765369761872,2.2665,3313.9,3313.8,4.56358059]
[1765369762266,2.2665,3313.9,3313.8,5.67298059]
[1765369762467,1.0965,3313.9,3313.8,5.67298059]
[1765369762662,0.6907,3314.5,3313.9,1.26026]
[1765369762869,2.9572,3314.5,3314.4,1.2012]
[1765369763170,3.73630628,3314.5,3313.9,1.35226283]
[1765369763469,0.77910628,3314.4,3313.9,1.35226283]
[1765369763962,2.1106,3314.0,3313.9,3.61956283]
[1765369764166,2.7623,3314.0,3313.9,0.15086]
[1765369764567,2.7623,3314.0,3313.9,1.17566]
[1765369764772,2.7623,3314.0,3313.9,0.15086]
[1765369767567,3.55668438,3314.0,3313.9,0.15086]
[1765369771479,3.55668438,3314.0,3313.9,1.17566]
[1765369771688,3.55668438,3314.0,3313.9,2.24176]
[1765369771979,2.7623,3314.0,3313.9,2.24176]
[1765369773479,2.7623,3314.0,3313.9,1.17566]
[1765369773682,2.7623,3314.0,3313.9,2.24176]
[1765369774072,1.7482,3314.0,3313.9,2.24176]
[1765369774272,1.0965,3314.0,3313.9,2.24176]
[1765369774468,2.1106,3314.0,3313.9,2.24176]
[1765369775681,3.2078,3314.4,3313.9,2.24176]
[1765369775877,2.85780252,3314.3,3314.2,2.0909]
[1765369776186,2.0635,3314.3,3314.2,2.0909]
[1765369777275,2.0635,3314.3,3314.2,1.0248]
[1765369777482,2.0635,3314.2,3314.1,1.17565]
[1765369777976,2.0635,3314.2,3314.1,0.15085]
[1765369778782,2.0635,3314.2,3314.1,1.17565]
[1765369779285,2.0635,3314.2,3314.1,0.15085]
[1765369780386,2.0635,3314.2,3314.1,1.17565]
[1765369780877,5.2713,3314.4,3314.3,2.0909]
[1765369781080,6.06623389,3314.4,3314.3,1.0248]
[1765369781885,6.06623389,3314.4,3314.3,2.0909]
[1765369782583,6.06623389,3314.4,3314.3,1.0248]
[1765369783777,5.05213389,3314.4,3314.3,2.0909]
[1765369783979,6.06623389,3314.4,3314.3,2.0909]
[1765369784179,6.06623389,3314.4,3314.3,2.24174]
[1765369784379,6.06623389,3314.4,3314.3,1.17564]
[1765369786079,6.06623389,3314.4,3314.3,2.24174]
[1765369787183,6.06623389,3314.4,3314.3,0.15084]
[1765369788187,4.00273389,3314.4,3314.3,2.24174]
[1765369788375,4.2572,3314.9,3314.8,2.24172]
[1765369788682,0.80551734,3314.9,3314.8,2.24172]
[1765369788884,1.05218437,3315.0,3314.9,2.0909]
[1765369789287,1.8576162,3315.0,3314.9,2.0909]
[1765369789489,1.05218437,3315.0,3314.9,2.0909]
[1765369790390,2.71798437,3315.0,3314.9,2.0909]
[1765369794496,1.7783,3314.9,3314.8,0.15082]
[1765369794795,1.7783,3314.9,3314.8,1.04552]
[1765369795389,1.7783,3314.9,3314.8,0.15082]
[1765369795897,1.7783,3314.9,3314.8,1.04552]
[1765369797198,1.7783,3314.9,3314.8,0.15082]
[1765369800498,1.7783,3314.9,3314.2,3.35865]
[1765369800698,1.7783,3314.3,3314.2,3.35865]
[1765369801298,1.7783,3314.3,3314.2,3.2078]
[1765369801506,1.7783,3313.9,3313.8,4.99831059]
[1765369801898,1.7783,3313.9,3313.8,4.10621059]
[1765369802109,1.7783,3313.9,3313.8,4.99831059]
[1765369805109,1.7783,3313.9,3313.8,6.20050294]
[1765369807513,1.7783,3313.9,3313.8,6.35137294]
[1765369807817,0.9026,3313.9,3313.8,6.35137294]
[1765369808014,5.292,3314.5,3314.4,0.7998]
[1765369808208,0.7844,3314.6,3314.5,0.95063]
[1765369808414,4.7535,3314.9,3314.8,0.8141]
[1765369808615,5.55070888,3314.9,3314.8,0.8141]
[1765369808912,1.5457,3314.3,3314.2,0.15085]
[1765369810112,1.5457,3313.9,3313.8,4.82541059]
[1765369811231,0.7844,3313.9,3313.8,4.82541059]
[1765369811721,1.5238,3313.9,3313.8,4.82541059]
[1765369813027,4.90259235,3314.5,3313.8,3.21151059]
[1765369813028,4.40999235,3314.5,3313.8,3.21151059]
[1765369813320,0.79731448,3314.4,3313.8,3.21151059]
[1765369817315,0.79731448,3314.4,3314.0,0.15086]
[1765369817521,3.2078,3314.5,3314.0,0.15086]
[1765369818019,3.2078,3314.9,3314.2,1.20219235]
[1765369818328,0.79725302,3314.8,3314.2,1.20219235]
[1765369819432,1.20219235,3314.7,3314.1,0.15085]
[1765369819629,1.20219235,3314.4,3314.1,0.15085]
[1765369819835,1.20219235,3314.4,3313.8,3.21151059]
[1765369819836,0.79737693,3314.3,3313.8,3.21151059]
[1765369820035,1.20219235,3314.0,3313.8,0.00371059]
[1765369820330,1.99959697,3313.9,3313.5,0.00301522]
[1765369820534,1.20219235,3313.6,3313.5,0.00301522]
[1765369820833,0.79743481,3313.6,3313.5,0.00301522]
[1765369821430,0.79743481,3313.6,3313.5,0.00623824]
[1765369822934,3.2078,3313.7,3313.5,0.00623824]
[1765369829439,3.2078,3313.7,3313.5,0.15711824]
[1765369829634,3.2078,3313.7,3313.6,0.15088]
[1765369829940,3.2078,3314.1,3313.6,0.15088]
[1765369830139,0.79412939,3314.0,3313.6,0.15088]
[1765369831247,0.79412939,3314.0,3313.5,0.00623824]
[1765369831847,3.2078,3313.7,3313.5,0.00623824]
[1765369832039,0.79412939,3313.6,3313.5,0.00623824]
[1765369833651,3.2078,3314.1,3313.5,0.00623824]
[1765369833842,0.79395757,3314.0,3313.5,0.00623824]
[1765369835550,0.79395757,3314.0,3313.5,0.15711824]
[1765369840252,0.79395757,3314.0,3313.6,0.15087]
[1765369840445,3.2078,3314.5,3313.9,0.15086]
[1765369840647,0.79412845,3314.4,3314.0,0.15086]
[1765369840950,3.2078,3314.5,3314.0,0.15086]
[1765369843545,0.7858222,3314.4,3314.0,0.15086]
[1765369857360,0.7858222,3314.4,3314.2,1.20208617]
[1765369859061,0.7858222,3314.4,3314.0,0.15086]
[1765369868462,0.7858222,3314.3,3314.0,0.15086]
[1765369868661,0.7858222,3314.2,3314.0,0.15086]
[1765369868871,0.7858222,3314.1,3314.0,0.15086]
[1765369869367,0.7858222,3314.4,3314.0,0.15086]
[1765369869570,3.6357,3314.5,3314.0,0.15086]
[1765369869571,0.7858222,3314.3,3314.0,0.15086]
[1765369869762,0.7858222,3314.2,3314.0,0.15086]
[1765369870072,0.7858222,3314.1,3314.0,0.15086]
[1765369870266,0.7858222,3314.4,3314.0,0.15086]
[1765369870562,0.7858222,3314.3,3314.0,0.15086]
[1765369870770,0.7858222,3314.2,3314.0,0.15086]
[1765369870963,0.7858222,3314.1,3314.0,0.15086]
[1765369871668,0.7858222,3314.4,3314.0,0.15086]
[1765369871871,0.7858222,3314.3,3314.0,0.15086]
[1765369872164,0.7858222,3314.2,3314.0,0.15086]
[1765369872362,0.7858222,3314.1,3314.0,0.15086]
[1765369873971,0.7858222,3314.1,3314.0,0.15086]
[1765369874366,0.7858222,3314.4,3314.0,0.15086]
[1765369874669,0.7858222,3314.3,3314.1,0.15085]
[1765369874870,0.7858222,3314.2,3314.1,0.15085]
[1765369875273,0.7858222,3314.4,3314.1,0.15085]
[1765369875476,0.7858222,3314.3,3314.1,0.15085]
[1765369875664,0.7858222,3314.2,3314.1,0.15085]
[1765369875966,0.7858222,3314.4,3314.1,0.15085]
[1765369877072,0.7858222,3314.3,3314.1,0.15085]
[1765369877265,0.7858222,3314.2,3314.1,0.15085]
[1765369877970,0.7858222,3314.4,3314.1,0.15085]
[1765369878164,0.7858222,3314.3,3314.1,0.15085]
[1765369878370,0.7858222,3314.2,3314.1,3.35865]
[1765369878669,3.2078,3314.9,3314.7,0.15082]
[1765369878865,3.2078,3314.9,3314.8,1.20213931]
[1765369879269,0.43068437,3315.0,3314.9,0.15082]
[1765369880374,0.43068437,3315.0,3314.5,3.5766]
[1765369880375,0.43068437,3315.0,3314.5,3.2078]
[1765369885179,0.4362,3314.5,3314.3,0.15084]
[1765369897696,0.75467329,3314.8,3314.2,3.2078]
[1765369897896,0.00278437,3315.0,3314.9,0.15082]
[1765369899497,1.78348437,3315.0,3314.9,1.62242]
[1765369899794,1.11638437,3315.0,3314.9,1.62242]
[1765369900998,0.00278437,3315.0,3314.9,1.62242]
[1765369901386,0.00452284,3315.3,3315.2,2.82453931]
[1765369901590,0.00452284,3315.3,3315.2,6.03233931]
[1765369902299,0.00759263,3315.3,3315.2,6.03233931]
[1765369905201,1.1053,3316.0,3315.9,1.467]
[1765369905702,1.8309,3316.5,3316.4,0.682]
[1765369905898,1.8309,3316.5,3316.4,1.417]
[1765369906298,1.14674746,3316.5,3316.4,1.42057199]
[1765369906698,1.83444746,3316.5,3316.4,1.42057199]
[1765369911093,1.83444746,3316.5,3316.4,0.68557199]
[1765369911298,1.83444746,3316.5,3316.4,0.00357199]
[1765369915697,1.83444746,3316.5,3316.4,1.42057199]
[1765369916409,1.83444746,3316.5,3316.4,0.68557199]
[1765369917307,1.83444746,3316.5,3316.4,1.42057199]
[1765369917704,1.14674746,3316.5,3316.4,1.57132199]
[1765369918506,0.71054746,3316.5,3316.4,1.57132199]
[1765369918914,1.83624746,3316.5,3316.4,0.15432199]
[1765369919211,1.83624746,3316.5,3316.4,0.83632199]
[1765369920112,1.83624746,3316.5,3316.4,1.57132199]
[1765369922016,0.00354746,3316.5,3316.4,1.57132199]
[1765369923817,1.83624746,3316.5,3316.4,0.83632199]
[1765369924015,1.83624746,3316.5,3316.4,1.57132199]
[1765369924820,1.83624746,3316.5,3316.4,2.03658845]
[1765369925313,1.83624746,3316.5,3316.4,0.15432199]
[1765369926111,1.83624746,3316.5,3316.4,0.83632199]
[1765369926512,1.83624746,3316.5,3316.4,0.15432199]
[1765369927819,1.83624746,3316.5,3316.4,2.77158845]
[1765369928516,0.00354746,3316.5,3316.4,2.77158845]
[1765369937923,1.88174746,3316.5,3316.4,2.77158845]
[1765369938121,1.88174746,3316.5,3316.4,0.15432199]
[1765369938829,1.88174746,3316.5,3316.4,2.04328845]
[1765369939129,1.88174746,3316.5,3316.4,0.00357199]
[1765369939627,1.88174746,3316.5,3316.4,1.20383845]
[1765369940220,1.88174746,3316.5,3316.4,0.00357199]
[1765369941730,1.88174746,3316.5,3316.4,0.69227199]
[1765369942426,1.15354746,3316.5,3316.4,1.37847199]
[1765369942631,0.00354746,3316.5,3316.4,1.37847199]
[1765369943128,0.00452284,3316.8,3316.7,1.52564]
[1765369943431,0.00452284,3316.8,3316.7,5.93370646]
[1765369944027,0.00701497,3316.8,3316.7,5.93370646]
[1765369945829,0.00701497,3316.8,3316.7,7.13397292]
[1765369946230,1.8879,3317.5,3317.4,1.3749]
[1765369946435,1.8879,3317.5,3317.4,5.78296646]
[1765369946636,1.1597,3317.5,3317.4,5.78296646]
[1765369947332,1.1625493,3317.5,3317.4,5.78296646]
[1765369947724,0.0028493,3317.5,3317.4,5.93366646]
[1765369947926,0.00452284,3317.8,3317.7,1.3749]
[1765369948125,0.00452284,3317.8,3317.7,2.57516646]
[1765369948631,0.00452284,3317.8,3317.7,2.72585646]
[1765369948832,0.4265,3318.5,3318.4,1.3749]
[1765369948833,1.8782,3318.5,3318.4,1.3749]
[1765369949030,1.15351428,3318.5,3318.4,2.57516646]
[1765369950232,0.00351428,3318.5,3318.4,2.72582646]
[1765369951228,0.72701428,3318.5,3318.4,2.72582646]
[1765369951637,0.00351428,3318.5,3318.4,2.72582646]
[1765369951832,1.88171428,3318.5,3318.4,1.20026646]
[1765369952128,1.4517,3318.4,3318.3,7.368]
[1765369952930,1.4517,3318.4,3318.3,8.7429]
[1765369953335,1.4517,3318.4,3318.3,1.3749]
[1765369953735,1.15351428,3318.5,3318.4,1.3749]
[1765369953936,1.88171428,3318.5,3318.4,2.57516646]
[1765369954530,1.88171428,3318.5,3318.4,1.20026646]
[1765369954737,1.4517,3318.3,3318.2,3.2078]
[1765369954930,1.4517,3318.3,3318.2,3.8965]
[1765369955435,1.4517,3318.3,3318.2,4.5827]
[1765369956939,1.4517,3318.3,3318.2,3.2078]
[1765369957136,0.00351428,3318.5,3318.4,1.3749]
[1765369957442,0.00351428,3318.5,3318.4,2.72582646]
[1765369958442,0.00452284,3318.8,3318.4,2.72582646]
[1765369958443,0.00452284,3318.8,3318.7,1.3749]
[1765369958640,1.45622284,3318.8,3318.7,5.78296646]
[1765369959136,0.00452284,3318.8,3318.7,5.93360646]
[1765369959343,0.73160262,3318.8,3318.7,5.93360646]
[1765369959537,1.45980262,3318.8,3318.7,5.24740646]
[1765369959732,1.45980262,3318.8,3318.7,5.93360646]
[1765369960052,0.73160262,3318.8,3318.7,5.93360646]
[1765369960540,0.00810262,3318.8,3318.7,5.93360646]
[1765369960731,0.00810262,3318.8,3318.7,4.73334]
[1765369961343,1.45980262,3318.8,3318.7,4.73334]
[1765369961545,1.45980262,3318.8,3318.7,4.04714]
[1765369961946,1.45980262,3318.8,3318.7,3.2078]
[1765369964058,1.7783,3318.5,3318.4,0.88155]
[1765369964349,1.7783,3318.5,3318.4,1.56075]
[1765369965856,1.7783,3318.5,3318.4,0.88155]
[1765369966155,1.7783,3318.5,3318.4,1.56075]
[1765369966466,1.7783,3318.5,3318.4,0.15065]
[1765369967155,1.7783,3318.5,3318.4,0.88155]
[1765369967856,1.0841,3318.5,3318.4,1.56075]
[1765369968058,1.37120262,3318.8,3318.7,0.7309]
[1765369968547,1.37120262,3318.8,3318.7,4.76854]
[1765369968752,1.37120262,3318.8,3318.7,3.2078]
[1765369970854,1.3631,3318.3,3318.2,3.2078]
[1765369971054,0.6689,3318.3,3318.2,4.6179]
[1765369971869,1.3631,3318.3,3318.2,4.6179]
[1765369972558,1.3631,3318.3,3318.2,3.9387]
[1765369972747,1.3631,3318.3,3318.2,3.2078]
[1765369973151,1.3631,3318.3,3318.2,3.9387]
[1765369973353,1.3631,3318.3,3318.2,4.6179]
[1765369973561,1.3631,3318.3,3318.2,3.9387]
[1765369973860,1.3631,3318.3,3318.2,4.6179]
[1765369975063,1.3631,3318.3,3318.2,3.9387]
[1765369975563,1.3631,3318.3,3318.2,4.6179]
[1765369976558,0.6689,3318.3,3318.2,4.6179]
[1765369976760,3.21590262,3318.8,3318.2,4.6179]
[1765369977067,1.3631,3318.6,3318.5,1.8113]
[1765369977261,0.00810262,3318.8,3318.7,1.56074]
[1765369977460,2.62e-06,3318.8,3318.7,4.76854]
[1765369979364,0.00452284,3319.1,3319.0,1.8113]
[1765369979667,0.00452284,3319.1,3319.0,1.96193]
[1765369980355,0.00452284,3319.1,3319.0,1.96545003]
[1765369980356,1.37139314,3319.1,3319.0,1.96545003]
[1765369980564,1.37139314,3319.1,3319.0,1.13562003]
[1765369980765,0.00829314,3319.1,3319.0,3.01311215]
[1765369980967,1.37139314,3319.1,3319.0,3.01311215]
[1765369981263,1.37139314,3319.1,3319.0,0.00352003]
[1765369982766,2.13288335,3319.1,3319.0,0.00352003]
[1765369983165,8.13288335,3319.1,3319.0,0.00352003]
[1765369983671,2.13288335,3319.1,3319.0,1.13562003]
[1765369984372,1.37139314,3319.1,3319.0,1.13562003]
[1765369984663,1.37139314,3319.1,3319.0,1.81482003]
[1765369984664,0.00829314,3319.1,3319.0,1.81482003]
[1765369987165,0.00829314,3319.1,3319.0,1.96545003]
[1765369988375,1.37139314,3319.1,3319.0,0.55535003]
[1765369988576,1.37139314,3319.1,3319.0,1.28625003]
[1765369989172,1.37139314,3319.1,3319.0,1.96545003]
[1765369989372,0.67719314,3319.1,3319.0,1.96545003]
[1765369989673,0.00829314,3319.1,3319.0,1.96545003]
[1765369990367,1.37139314,3319.1,3319.0,1.96545003]
[1765369990976,0.67719314,3319.1,3319.0,1.96545003]
[1765369991769,1.37139314,3319.1,3319.0,1.28625003]
[1765369992078,1.37139314,3319.1,3319.0,0.00352003]
[1765369993882,1.37139314,3319.1,3319.0,0.41992003]
[1765369995375,1.37139314,3319.1,3319.0,1.82712003]
[1765369997785,1.39989314,3319.1,3319.0,1.82712003]
[1765369997983,1.39989314,3319.1,3319.0,0.00352003]
[1765369998676,8.16117167,3319.1,3318.4,3.2078]
[1765369998882,1.4326,3318.2,3318.1,1.56239284]
[1765369999080,0.7099,3318.2,3318.1,1.56239284]
[1765369999271,1.4326,3318.2,3318.1,0.73932284]
[1765369999474,1.4326,3318.2,3318.1,0.00452284]
[1765369999876,1.4326,3318.2,3318.1,0.00671783]
[1765370002586,1.4326,3318.2,3318.1,0.74151783]
[1765370003085,1.4326,3318.2,3318.1,0.00671783]
[1765370003478,1.4326,3318.2,3318.1,0.74151783]
[1765370003880,1.4326,3318.2,3318.1,1.41391783]
[1765370004591,4.6404,3318.8,3318.7,1.4072]
[1765370004785,5.4009538,3318.8,3318.7,0.7348]
[1765370005191,4.6404,3318.8,3318.7,0.7348]
[1765370007088,4.6404,3318.8,3318.7,1.4072]
[1765370007089,1.4326,3318.8,3318.7,1.4072]
[1765370008291,0.71819314,3319.1,3319.0,1.8236]
[1765370008488,1.49267044,3319.1,3319.0,1.8236]
[1765370008686,2.21537044,3319.1,3319.0,1.8236]
[1765370009793,0.71819314,3319.1,3319.0,1.8236]
[1765370010091,0.00829314,3319.1,3319.0,1.8236]
[1765370010885,0.71819314,3319.1,3319.0,1.8236]
[1765370011089,0.71819314,3319.1,3318.9,0.15063]
[1765370011090,1.4326,3319.0,3318.9,0.15063]
[1765370011395,1.4326,3319.0,3318.9,1.55783]
[1765370012192,0.7099,3319.0,3318.9,1.55783]
[1765370012385,0.00829314,3319.1,3319.0,1.8236]
[1765370012584,0.71819314,3319.1,3319.0,1.8236]
[1765370013390,0.00829314,3319.1,3319.0,1.8236]
[1765370015599,0.71819314,3319.1,3319.0,1.8236]
[1765370015995,1.44089314,3319.1,3319.0,0.4164]
[1765370016188,0.00829314,3319.1,3319.0,1.8236]
[1765370016494,1.44089314,3319.1,3319.0,1.8236]
[1765370019103,0.71819314,3319.1,3319.0,1.8236]
[1765370019297,1.44089314,3319.1,3319.0,1.8236]
[1765370019492,1.44089314,3319.1,3319.0,0.4164]
[1765370020601,1.44089314,3319.1,3319.0,1.1512]
[1765370021995,1.44089314,3319.1,3319.0,1.8236]
[1765370022501,1.44089314,3319.1,3319.0,0.4164]
[1765370023203,1.4655,3318.6,3318.5,4.354]
[1765370024003,1.4655,3318.6,3318.5,5.0882]
[1765370024204,1.4655,3318.6,3318.5,4.354]
[1765370024502,1.4655,3318.6,3318.5,5.0882]
[1765370024896,0.7256,3318.6,3318.5,5.0882]
[1765370029002,1.47379314,3319.1,3319.0,1.8865]
[1765370029205,2.25591831,3319.1,3319.0,0.4225]
[1765370029406,0.7256,3318.6,3318.5,5.0882]
[1765370030600,0.00829314,3319.1,3318.5,5.0882]
[1765370030803,2.2560845,3319.1,3319.0,1.1523]
[1765370031002,2.2560845,3319.1,3319.0,0.4225]
[1765370032810,2.2560845,3319.1,3319.0,1.1523]
[1765370033308,1.4655,3318.7,3318.6,1.61465]
[1765370033509,0.7256,3318.7,3318.6,1.61465]
[1765370035010,1.4655,3318.7,3318.6,1.464]
[1765370036004,1.4655,3318.7,3318.6,0.7298]
[1765370037613,1.4655,3318.7,3318.6,1.464]
[1765370039111,0.00829314,3319.1,3318.5,5.0882]
[1765370039306,0.792935,3319.1,3318.5,1.8804]
[1765370039613,0.7256,3318.6,3318.5,1.8804]
[1765370040216,1.4655,3318.6,3318.5,1.8804]
[1765370040416,1.4655,3318.6,3318.5,1.1462]
[1765370040611,1.4655,3318.6,3318.5,0.4164]
[1765370040816,1.4655,3318.6,3318.1,0.15738783]
[1765370040817,1.4655,3318.2,3318.1,0.00671783]
[1765370041311,1.4655,3318.2,3318.1,1.47071783]
[1765370041514,2.27960173,3318.2,3318.1,1.47071783]
[1765370041915,2.27960173,3318.2,3318.1,0.73651783]
[1765370042219,2.27960173,3318.2,3318.1,0.00671783]
[1765370042512,5.48740173,3318.2,3318.1,0.00671783]
[1765370043412,5.48677861,3318.2,3318.1,0.00671783]
[1765370043614,1.4655,3317.7,3317.6,0.88049]
[1765370044220,1.4655,3317.7,3317.6,1.61469]
[1765370044618,1.4655,3317.7,3317.6,1.61751692]
[1765370048726,1.4655,3317.7,3317.6,2.81690412]
[1765370048928,1.4655,3317.7,3317.6,1.93201412]
[1765370049522,1.4655,3317.7,3317.6,2.66621412]
[1765370051321,0.7256,3317.7,3317.6,2.66621412]
[1765370051527,4.6733,3318.1,3318.0,0.4225]
[1765370051726,5.48580632,3318.1,3318.0,1.6218872]
[1765370052136,5.48580632,3318.1,3318.0,2.3142872]
[1765370052430,4.02030632,3318.1,3318.0,3.0203872]
[1765370052632,4.7314476,3318.1,3318.0,3.0203872]
[1765370052832,5.4253476,3318.1,3318.0,3.0203872]
[1765370053337,5.4253476,3318.1,3318.0,2.3142872]
[1765370053529,5.4253476,3318.1,3318.0,3.0018872]
[1765370053831,5.4253476,3318.1,3317.6,0.00282692]
[1765370053832,1.4302,3317.8,3317.7,1.1993872]
[1765370054234,1.4302,3317.8,3317.7,1.9021872]
[1765370054634,1.4302,3317.8,3317.7,1.1993872]
[1765370055034,1.4302,3317.7,3317.6,0.00282692]
[1765370055335,1.4302,3317.7,3317.6,1.90501412]
[1765370055534,0.7363,3317.7,3317.6,2.59261412]
[1765370056131,0.7363,3317.7,3317.6,1.90501412]
[1765370056132,1.4302,3317.7,3317.6,1.90501412]